[Event "Titled Tuesday Blitz August 3 2021"]
[White "Yoo, Christopher Woojin"]
[Black "Ter-Sahakyan, Samvel"]
[WhiteFideId "30909694"]
[BlackFideId "13302531"]
[WhiteElo "2105"]
[BlackElo "2551"]
[Result "0-1"]
[Round "11"]
[TimeControl "180+1"]
[Date "2021.08.03"]
[WhiteClock "0:00:03"]
[BlackClock "0:00:16"]

1. e4 {[%clk 0:03:00]}  c5 {[%clk 0:02:59]} 2. Nf3 {[%clk 0:03:00]}  Nc6 {[%clk 0:02:58]} 3. Nc3 {[%clk 0:03:00]}  e5 {[%clk 0:02:57]} 4. Bc4 {[%clk 0:03:00]}  g6 {[%clk 0:02:56]} 5. d3 {[%clk 0:03:00]}  h6 {[%clk 0:02:56]} 6. a3 {[%clk 0:03:00]}  d6 {[%clk 0:02:50]} 7. Rb1 {[%clk 0:02:56]}  a5 {[%clk 0:02:46]} 8. Nd5 {[%clk 0:02:53]}  Bg7 {[%clk 0:02:43]} 9. b4 {[%clk 0:02:41]}  axb4 {[%clk 0:02:43]} 10. axb4 {[%clk 0:02:41]}  Nxb4 {[%clk 0:02:43]} 11. Nxb4 {[%clk 0:02:31]}  cxb4 {[%clk 0:02:43]} 12. Bd2 {[%clk 0:02:22]}  Ne7 {[%clk 0:02:39]} 13. Bxb4 {[%clk 0:02:22]}  O-O {[%clk 0:02:36]} 14. O-O {[%clk 0:02:22]}  Be6 {[%clk 0:02:26]} 15. Nd2 {[%clk 0:02:12]}  Nc6 {[%clk 0:01:58]} 16. Bxe6 {[%clk 0:02:00]}  fxe6 {[%clk 0:01:59]} 17. Nc4 {[%clk 0:01:41]}  b5 {[%clk 0:01:59]} 18. Ne3 {[%clk 0:01:27]}  h5 {[%clk 0:01:53]} 19. c4 {[%clk 0:01:20]}  Rb8 {[%clk 0:01:19]} 20. cxb5 {[%clk 0:01:14]}  Rxb5 {[%clk 0:01:20]} 21. Qa4 {[%clk 0:01:06]}  Nd4 {[%clk 0:01:16]} 22. Nc4 {[%clk 0:00:51]}  Rf4 {[%clk 0:00:39]} 23. Nxd6 {[%clk 0:00:20]}  Qh4 {[%clk 0:00:38]} 24. h3 {[%clk 0:00:16]}  Rf3 {[%clk 0:00:24]} 25. Nxb5 {[%clk 0:00:08]}  Ne2+ {[%clk 0:00:19]} 26. Kh2 {[%clk 0:00:09]}  Qf4+ {[%clk 0:00:16]} 27. g3 {[%clk 0:00:04]}  Rxf2+ {[%clk 0:00:16]} 28. Kh1 {[%clk 0:00:03]}  Qf3# {[%clk 0:00:16]} 0-1


[Site "https://www.chess.com"]

[Event "Titled Tuesday Blitz August 3 2021"]
[White "Zhurbinsky, David"]
[Black "Madaminov, Mukhiddin"]
[WhiteFideId "2072904"]
[BlackFideId "14210703"]
[WhiteElo "2571"]
[BlackElo "1747"]
[Result "0-1"]
[Round "11"]
[TimeControl "180+1"]
[Date "2021.08.03"]
[WhiteClock "0:00:13"]
[BlackClock "0:02:25"]

1. e4 {[%clk 0:03:00]}  e5 {[%clk 0:02:59]} 2. Nf3 {[%clk 0:02:59]}  Nc6 {[%clk 0:02:59]} 3. Bb5 {[%clk 0:03:00]}  Nf6 {[%clk 0:02:59]} 4. O-O {[%clk 0:02:59]}  Bc5 {[%clk 0:02:58]} 5. c3 {[%clk 0:02:59]}  O-O {[%clk 0:02:57]} 6. d4 {[%clk 0:02:58]}  Bb6 {[%clk 0:02:57]} 7. Bg5 {[%clk 0:02:56]}  h6 {[%clk 0:02:57]} 8. Bh4 {[%clk 0:02:55]}  d6 {[%clk 0:02:57]} 9. Bxc6 {[%clk 0:02:36]}  bxc6 {[%clk 0:02:58]} 10. dxe5 {[%clk 0:02:36]}  dxe5 {[%clk 0:02:59]} 11. Qxd8 {[%clk 0:02:35]}  Rxd8 {[%clk 0:03:00]} 12. Nxe5 {[%clk 0:02:34]}  g5 {[%clk 0:03:00]} 13. Nxc6 {[%clk 0:02:24]}  Re8 {[%clk 0:02:59]} 14. e5 {[%clk 0:02:15]}  Ne4 {[%clk 0:02:59]} 15. Bg3 {[%clk 0:02:12]}  h5 {[%clk 0:02:57]} 16. Re1 {[%clk 0:02:07]}  Bb7 {[%clk 0:02:57]} 17. Rxe4 {[%clk 0:01:18]}  Bxc6 {[%clk 0:02:57]} 18. Rc4 {[%clk 0:01:17]}  Bd5 {[%clk 0:02:56]} 19. Ra4 {[%clk 0:01:18]}  h4 {[%clk 0:02:55]} 20. Rg4 {[%clk 0:01:17]}  f6 {[%clk 0:02:50]} 21. Nd2 {[%clk 0:01:14]}  hxg3 {[%clk 0:02:50]} 22. hxg3 {[%clk 0:00:54]}  Rxe5 {[%clk 0:02:48]} 23. Rd1 {[%clk 0:00:48]}  Re2 {[%clk 0:02:44]} 24. Nc4 {[%clk 0:00:28]}  Bxc4 {[%clk 0:02:40]} 25. Rxc4 {[%clk 0:00:29]}  Rxf2 {[%clk 0:02:40]} 26. Kh2 {[%clk 0:00:25]}  Kg7 {[%clk 0:02:36]} 27. Rd7+ {[%clk 0:00:24]}  Kg6 {[%clk 0:02:36]} 28. g4 {[%clk 0:00:21]}  Rxb2 {[%clk 0:02:33]} 29. a4 {[%clk 0:00:21]}  Bf2 {[%clk 0:02:30]} 30. g3 {[%clk 0:00:18]}  Bb6+ {[%clk 0:02:27]} 31. Kh1 {[%clk 0:00:12]}  Rh8+ {[%clk 0:02:24]} 32. Rh7 {[%clk 0:00:13]}  Rxh7# {[%clk 0:02:25]} 0-1